[Event "2nd Serbian League-Vojvodina 2023"]
[Site "Novi Sad"]
[Date "2023.11.07"]
[Round "8.11"]
[White "Sukunda, Dejan"]
[Black "Joksimovic, Dragoljub"]
[Result "1-0"]
[ECO "D30"]
[WhiteElo "2010"]
[BlackElo "2123"]
[Annotator "RC"]
[PlyCount "117"]
[EventDate "2023.10.22"]
[EventType "team-tourn"]
[EventCountry "SRB"]
[SourceTitle "playchess.com"]
[Source "ChessBase"]
[SourceQuality "1"]
[TimeControl "40/5400+30:1800+30"]

1. Nf3 {[%emt 0:00:30]} d5 {[%emt 0:00:33]} 2. d4 {[%emt 0:00:21]} Nf6 {[%emt 0:00:31]} 3. e3 {[%emt 0:00:58]} e6 {[%emt 0:03:52]} 4. c4 {[%emt 0:01:05]} Be7 {[%emt 0:03:19]} 5. Bd3 {[%emt 0:00:33]} Nbd7 {[%emt 0:01:16]} 6. O-O {[%emt 0:00:25]} b6 {[%emt 0:00:50]} 7. b3 {[%emt 0:00:53]} Bb7 {[%emt 0:00:51]} 8. Bb2 {[%emt 0:00:23]} c5 {[%emt 0:01:49]} 9. Nbd2 {[%emt 0:05:13]} Ne4 {[%emt 0:04:29]} 10. Rc1 {[%emt 0:01:40]} Bf6 {[%emt 0:06:08]} 11. Bb1 {[%emt 0:05:12]} Nxd2 {[%emt 0:00:34]} 12. Nxd2 {[%emt 0:00:38]} e5 {[%emt 0:04:23]} 13. Re1 {[%emt 0:04:47]} Kf8 {[%emt 0:09:04]} 14. cxd5 {[%emt 0:07:33]} exd4 {[%emt 0:02:14]} 15. e4 {[%emt 0:06:36]} Bg5 {[%emt 0:05:22]} 16. g3 {[%emt 1:01:43]} Bxd2 {[%emt 0:05:06]} 17. Qxd2 {[%emt 0:00:00]} h5 {[%emt 0:48:39]} 18. h4 {[%emt 0:00:00]} Rh6 {[%emt 0:00:00]} 19. f4 {[%emt 0:00:00]} Rg6 {[%emt 0:00:00]} 20. Qg2 {[%emt 0:00:00]} Nf6 {[%emt 0:00:00]} 21. Rcd1 {[%emt 0:00:00]} Qd7 {[%emt 0:00:00]} 22. Bc1 {[%emt 0:00:00]} Re8 {[%emt 0:00:00]} 23. f5 {[%emt 0:00:00]} Rg4 {[%emt 0:00:00]} 24. Bf4 {[%emt 0:00:00]} Qd8 {[%emt 0:00:00]} 25. Bd3 {[%emt 0:00:00]} Rxf4 {[%emt 0:00:00]} 26. gxf4 {[%emt 0:05:00]} Ng4 {[%emt 0:04:30]} 27. Qg3 {[%emt 0:00:00]} a6 {[%emt 0:00:00]} 28. Rd2 {[%emt 0:00:00]} b5 {[%emt 0:00:00]} 29. Bf1 {[%emt 0:00:00]} Qb6 {[%emt 0:00:00]} 30. Qd3 {[%emt 0:00:00]} Bxd5 {[%emt 0:00:00]} 31. e5 {[%emt 0:00:00]} Qd8 {[%emt 0:00:00]} 32. f6 {[%emt 0:00:00]} Nxf6 {[%emt 0:00:00]} 33. Bh3 {[%emt 0:00:00]} Ng4 {[%emt 0:00:00]} 34. Bxg4 {[%emt 0:00:00]} hxg4 {[%emt 0:00:00]} 35. Qh7 {[%emt 0:00:00]} f6 {[%emt 0:00:00]} 36. Rde2 {[%emt 0:00:00]} f5 {[%emt 0:00:00]} 37. Qxf5+ {[%emt 0:00:00]} Kg8 {[%emt 0:00:00]} 38. Qxg4 {[%emt 0:00:00]} d3 {[%emt 0:00:00]} 39. Rd2 {[%emt 0:00:00]} c4 {[%emt 0:00:00]} 40. f5 {[%emt 0:00:00]} Qb6+ {[%emt 0:00:00]} 41. Kh2 {[%emt 0:18:13]} Re7 {[%emt 0:24:39]} 42. f6 {[%emt 0:00:31]} Rc7 {[%emt 0:00:09]} 43. e6 {[%emt 0:00:26]} Qb8 {[%emt 0:05:31]} 44. Qg3 {[%emt 0:01:40]} Rb7 {[%emt 0:01:15]} 45. Qxb8+ {[%emt 0:01:34]} Rxb8 {[%emt 0:00:03]} 46. Re5 {[%emt 0:00:29]} Bc6 {[%emt 0:02:37]} 47. Rg5 {[%emt 0:00:33]} Rf8 {[%emt 0:02:18]} 48. f7+ {[%emt 0:01:58]} Kh7 {[%emt 0:00:09]} 49. Rd1 {[%emt 0:00:15]} Be8 {[%emt 0:03:02]} 50. Rdg1 {[%emt 0:00:30]} g6 {[%emt 0:00:26]} 51. Rxg6 {[%emt 0:00:14]} Bxf7 {[%emt 0:00:17]} 52. Rg7+ {[%emt 0:00:20]} Kh6 {[%emt 0:00:14]} 53. Rxf7 {[%emt 0:00:33]} Re8 {[%emt 0:00:14]} 54. bxc4 {[%emt 0:01:28]} bxc4 {[%emt 0:00:02]} 55. Rc7 {[%emt 0:00:19]} Rxe6 {[%emt 0:00:25]} 56. Rxc4 {[%emt 0:00:10]} Re2+ {[%emt 0:00:19]} 57. Rg2 {[%emt 0:00:10]} Re3 {[%emt 0:00:46]} 58. Rd4 {[%emt 0:00:13]} Kh5 {[%emt 0:00:15]} 59. Rd8 {[%emt 0:16:54]} 1-0

[Event "2nd Serbian League-Vojvodina 2023"]
[Site "Novi Sad"]
[Date "2023.11.07"]
[Round "8.12"]
[White "Milanovic, Stanko"]
[Black "Meseldzija, Jovan"]
[Result "1-0"]
[ECO "B50"]
[WhiteElo "2115"]
[BlackElo "1639"]
[Annotator "RC"]
[PlyCount "52"]
[EventDate "2023.10.22"]
[EventType "team-tourn"]
[EventCountry "SRB"]
[SourceTitle "playchess.com"]
[Source "ChessBase"]
[SourceQuality "1"]
[TimeControl "40/5400+30:1800+30"]

1. e4 {[%emt 0:00:13]} c5 {[%emt 0:00:32]} 2. Nf3 {[%emt 0:00:40]} d6 {[%emt 0:00:19]} 3. c3 {[%emt 0:00:32]} Nf6 {[%emt 0:00:50]} 4. Be2 {[%emt 0:01:04]} Nc6 {[%emt 0:02:11]} 5. d4 {[%emt 0:00:49]} cxd4 {[%emt 0:02:31]} 6. cxd4 {[%emt 0:00:10]} Nxe4 {[%emt 0:01:19]} 7. d5 {[%emt 0:00:25]} Qa5+ {[%emt 0:01:19]} 8. Nc3 {[%emt 0:00:16]} Nxc3 {[%emt 0:01:43]} 9. bxc3 {[%emt 0:00:21]} Nb8 {[%emt 0:01:03]} 10. Qd4 {[%emt 0:02:57]} Qc5 {[%emt 0:02:19]} 11. Qd3 {[%emt 0:01:10]} e6 {[%emt 0:13:03]} 12. dxe6 {[%emt 0:04:39]} Bxe6 {[%emt 0:03:29]} 13. Nd4 {[%emt 0:07:49]} Be7 {[%emt 0:03:51]} 14. Nxe6 {[%emt 0:08:44]} fxe6 {[%emt 0:00:08]} 15. Rb1 {[%emt 0:00:40]} O-O {[%emt 0:05:10]} 16. O-O {[%emt 0:01:48]} Qc7 {[%emt 0:07:26]} 17. Qe4 {[%emt 0:02:43]} Nc6 {[%emt 0:00:43]} 18. Bd3 {[%emt 0:00:41]} g6 {[%emt 0:01:57]} 19. Qxe6+ {[%emt 0:02:56]} Kg7 {[%emt 0:02:05]} 20. Qh3 {[%emt 0:01:53]} h5 {[%emt 0:04:43]} 21. Qe3 {[%emt 0:02:08]} Rh8 {[%emt 0:06:15]} 22. Qe4 {[%emt 0:00:31]} Ne5 {[%emt 0:00:28]} 23. Rxb7 {[%emt 0:00:47]} Qd8 {[%emt 0:00:30]} 24. Bc2 {[%emt 0:04:02]} Qe8 {[%emt 0:06:38]} 25. f4 {[%emt 0:02:07]} Nc6 {[%emt 0:00:39]} 26. Ba4 {[%emt 0:53:25]} Nb8 {[%emt 0:32:19]} 1-0

[Event "2nd Serbian League-Vojvodina 2023"]
[Site "Novi Sad"]
[Date "2023.11.07"]
[Round "8.13"]
[White "Samani, Yamac"]
[Black "Nevednichy, Vladislav"]
[Result "1/2-1/2"]
[ECO "B67"]
[WhiteElo "2349"]
[BlackElo "2447"]
[Annotator "RC"]
[PlyCount "78"]
[EventDate "2023.10.22"]
[EventType "team-tourn"]
[EventCountry "SRB"]
[SourceTitle "playchess.com"]
[Source "ChessBase"]
[SourceQuality "1"]
[TimeControl "40/5400+30:1800+30"]

1. e4 {[%emt 1:31:00]} c5 {[%emt 1:31:00]} 2. Nf3 {[%emt 0:00:30]} Nc6 {[%emt 0:00:30]} 3. d4 {[%emt 0:00:30]} cxd4 {[%emt 0:00:30]} 4. Nxd4 {[%emt 0:00:30]} Nf6 {[%emt 0:00:30]} 5. Nc3 {[%emt 0:00:30]} d6 {[%emt 0:00:30]} 6. Bg5 {[%emt 0:00:30]} e6 {[%emt 0:00:30]} 7. Qd2 {[%emt 0:00:30]} a6 {[%emt 0:00:30]} 8. O-O-O {[%emt 0:00:30]} Bd7 {[%emt 0:00:30]} 9. Kb1 {[%emt 0:00:30]} Be7 {[%emt 0:00:30]} 10. Nxc6 {[%emt 0:00:30]} Bxc6 {[%emt 0:00:30]} 11. f3 {[%emt 0:00:30]} b5 {[%emt 0:00:30]} 12. h4 {[%emt 0:00:30]} h6 {[%emt 0:00:30]} 13. Be3 {[%emt 0:00:30]} d5 {[%emt 0:00:30]} 14. e5 {[%emt 0:00:30]} Nd7 {[%emt 0:00:30]} 15. f4 {[%emt 0:00:30]} Nc5 {[%emt 0:00:30]} 16. Ne2 {[%emt 0:00:30]} Ne4 {[%emt 0:00:30]} 17. Qe1 {[%emt 0:00:30]} h5 {[%emt 0:00:30]} 18. Nd4 {[%emt 0:00:30]} Qc7 {[%emt 0:00:30]} 19. f5 {[%emt 0:00:30]} exf5 {[%emt 0:00:30]} 20. Nxf5 {[%emt 0:00:30]} Qxe5 {[%emt 0:00:30]} 21. Nxe7 {[%emt 0:00:30]} Qxe7 {[%emt 0:00:30]} 22. Bd4 {[%emt 0:00:30]} O-O {[%emt 0:00:30]} 23. Be2 {[%emt 0:00:30]} b4 {[%emt 0:00:30]} 24. Bxh5 {[%emt 0:00:30]} a5 {[%emt 0:00:30]} 25. Bf3 {[%emt 0:00:30]} Rfe8 {[%emt 0:00:30]} 26. h5 {[%emt 0:00:30]} Qg5 {[%emt 0:00:30]} 27. Qh4 {[%emt 0:00:30]} Qh6 {[%emt 0:00:30]} 28. Rhe1 {[%emt 0:00:30]} a4 {[%emt 0:00:30]} 29. Bxe4 {[%emt 0:00:30]} Rxe4 {[%emt 0:00:30]} 30. Rxe4 {[%emt 0:00:30]} dxe4 {[%emt 0:00:30]} 31. Bc5 {[%emt 0:00:30]} Re8 {[%emt 0:00:30]} 32. Rd6 {[%emt 0:00:30]} Re6 {[%emt 0:00:30]} 33. Rxe6 {[%emt 0:00:30]} Qxe6 {[%emt 0:00:30]} 34. Qe1 {[%emt 0:00:30]} b3 {[%emt 0:00:30]} 35. axb3 {[%emt 0:00:30]} axb3 {[%emt 0:00:30]} 36. Qe3 {[%emt 0:00:30]} bxc2+ 37. Kxc2 Qg4 {[%emt 0:01:00]} 38. h6 {[%emt 0:01:00]} Qxg2+ {[%emt 0:00:30]} 39. Kc3 {[%emt 0:00:30]} f6 {[%emt 0:00:30]} 1/2-1/2

[Event "2nd Serbian League-Vojvodina 2023"]
[Site "Novi Sad"]
[Date "2023.11.07"]
[Round "8.14"]
[White "Stoleriu, George"]
[Black "Alimpic, Aleksa"]
[Result "1/2-1/2"]
[ECO "B10"]
[WhiteElo "2400"]
[BlackElo "2290"]
[Annotator "RC"]
[PlyCount "60"]
[EventDate "2023.10.22"]
[EventType "team-tourn"]
[EventCountry "SRB"]
[SourceTitle "playchess.com"]
[Source "ChessBase"]
[SourceQuality "1"]
[TimeControl "40/5400+30:1800+30"]

1. e4 {[%emt 1:31:00]} c6 {[%emt 1:31:00]} 2. Nf3 {[%emt 0:00:30]} d5 {[%emt 0:00:30]} 3. d3 {[%emt 0:00:30]} dxe4 {[%emt 0:00:30]} 4. dxe4 {[%emt 0:00:30]} Qxd1+ {[%emt 0:00:00]} 5. Kxd1 {[%emt 0:00:30]} Nf6 {[%emt 0:01:00]} 6. Nbd2 {[%emt 0:00:30]} g6 {[%emt 0:00:30]} 7. Ne5 {[%emt 0:00:30]} Nbd7 {[%emt 0:00:30]} 8. Nd3 {[%emt 0:00:30]} Ng4 {[%emt 0:00:30]} 9. h3 {[%emt 0:00:30]} Nge5 {[%emt 0:00:30]} 10. Nxe5 {[%emt 0:00:30]} Nxe5 {[%emt 0:00:30]} 11. Nc4 {[%emt 0:00:30]} Bg7 {[%emt 0:00:30]} 12. c3 {[%emt 0:00:30]} Be6 {[%emt 0:00:30]} 13. Nxe5 {[%emt 0:00:30]} Bxe5 {[%emt 0:00:30]} 14. Bh6 {[%emt 0:00:30]} a5 {[%emt 0:00:00]} 15. a4 Bb3+ {[%emt 0:01:00]} 16. Kc1 {[%emt 0:01:00]} O-O-O {[%emt 0:00:00]} 17. Be2 f6 {[%emt 0:01:00]} 18. Be3 {[%emt 0:01:00]} g5 {[%emt 0:00:30]} 19. g3 {[%emt 0:00:30]} h5 {[%emt 0:00:30]} 20. h4 {[%emt 0:00:30]} g4 {[%emt 0:00:00]} 21. Bd1 Bc4 {[%emt 0:01:00]} 22. Re1 {[%emt 0:01:00]} Kc7 {[%emt 0:00:30]} 23. Ra3 {[%emt 0:00:30]} Ra8 {[%emt 0:00:30]} 24. Bb3 {[%emt 0:00:30]} Bxb3 {[%emt 0:00:30]} 25. Rxb3 {[%emt 0:00:30]} Ra6 {[%emt 0:00:30]} 26. Rd1 {[%emt 0:00:00]} b6 27. c4 {[%emt 0:00:00]} Bd6 28. Kd2 {[%emt 0:01:30]} c5 {[%emt 0:01:30]} 29. Ke2 {[%emt 0:00:00]} Raa8 {[%emt 0:00:30]} 30. Rbd3 {[%emt 0:01:00]} Rad8 {[%emt 0:00:30]} 1/2-1/2

[Event "2nd Serbian League-Vojvodina 2023"]
[Site "Novi Sad"]
[Date "2023.11.07"]
[Round "8.15"]
[White "Pajcin, Lav"]
[Black "Kovacevic, Sinisa"]
[Result "1-0"]
[ECO "D37"]
[WhiteElo "2109"]
[BlackElo "2240"]
[Annotator "RC"]
[PlyCount "59"]
[EventDate "2023.10.22"]
[EventType "team-tourn"]
[EventCountry "SRB"]
[SourceTitle "playchess.com"]
[Source "ChessBase"]
[SourceQuality "1"]
[TimeControl "40/5400+30:1800+30"]

1. d4 {[%emt 0:00:08]} d5 {[%emt 0:00:20]} 2. c4 {[%emt 0:00:14]} e6 {[%emt 0:00:20]} 3. Nf3 {[%emt 0:00:16]} Nf6 {[%emt 0:00:30]} 4. Nc3 {[%emt 0:00:15]} Nbd7 {[%emt 0:03:04]} 5. Bf4 {[%emt 0:01:58]} dxc4 {[%emt 0:02:32]} 6. e3 {[%emt 0:00:12]} Nb6 {[%emt 0:00:54]} 7. Bxc4 {[%emt 0:01:41]} Nxc4 {[%emt 0:00:28]} 8. Qa4+ {[%emt 0:00:09]} c6 {[%emt 0:01:01]} 9. Qxc4 {[%emt 0:00:06]} Bd6 {[%emt 0:14:47]} 10. Bxd6 {[%emt 0:02:09]} Qxd6 {[%emt 0:00:07]} 11. O-O {[%emt 1:28:52]} O-O {[%emt 1:11:57]} 12. Rac1 {[%emt 0:00:00]} Rd8 {[%emt 0:00:30]} 13. Qe2 {[%emt 0:01:00]} Nd5 {[%emt 0:00:00]} 14. Ne4 {[%emt 0:00:00]} Qe7 {[%emt 0:00:00]} 15. Ne5 {[%emt 0:00:00]} f6 16. Nd3 {[%emt 0:01:30]} e5 {[%emt 0:02:00]} 17. dxe5 {[%emt 0:00:30]} Bf5 {[%emt 0:00:30]} 18. Nec5 {[%emt 0:00:30]} Bxd3 {[%emt 0:00:00]} 19. Qxd3 {[%emt 0:00:00]} fxe5 20. Qb3 {[%emt 0:01:00]} b6 {[%emt 0:01:30]} 21. Na6 {[%emt 0:00:30]} Qb7 {[%emt 0:00:30]} 22. Nb4 {[%emt 0:00:30]} c5 {[%emt 0:00:00]} 23. Nd3 {[%emt 0:00:30]} e4 {[%emt 0:00:00]} 24. Nxc5 {[%emt 0:00:00]} Qe7 {[%emt 0:00:00]} 25. Rfd1 {[%emt 0:01:00]} Qe5 {[%emt 0:02:00]} 26. Nxe4 {[%emt 0:00:00]} Qxe4 {[%emt 0:00:00]} 27. Rc4 {[%emt 0:01:00]} Qe6 {[%emt 0:01:00]} 28. Rcd4 {[%emt 0:00:00]} Rac8 {[%emt 0:00:30]} 29. e4 {[%emt 0:01:00]} Re8 {[%emt 0:00:00]} 30. Rxd5 {[%emt 0:00:30]} 1-0

[Event "2nd Serbian League-Vojvodina 2023"]
[Site "Novi Sad"]
[Date "2023.11.07"]
[Round "8.16"]
[White "Parezanin, Darko"]
[Black "Gagic, Milan A"]
[Result "0-1"]
[ECO "D34"]
[WhiteElo "2192"]
[BlackElo "2164"]
[Annotator "RC"]
[PlyCount "70"]
[EventDate "2023.10.22"]
[EventType "team-tourn"]
[EventCountry "SRB"]
[SourceTitle "playchess.com"]
[Source "ChessBase"]
[SourceQuality "1"]
[TimeControl "40/5400+30:1800+30"]

1. c4 {[%emt 1:31:00]} e6 {[%emt 1:31:00]} 2. g3 {[%emt 0:00:30]} d5 {[%emt 0:00:30]} 3. Bg2 {[%emt 0:00:30]} Nf6 {[%emt 0:00:00]} 4. Nf3 c5 {[%emt 0:01:00]} 5. cxd5 {[%emt 0:01:00]} exd5 6. d4 {[%emt 0:00:30]} Nc6 {[%emt 0:01:00]} 7. O-O {[%emt 0:00:30]} Be7 {[%emt 0:00:30]} 8. Nc3 {[%emt 0:00:30]} O-O {[%emt 0:00:30]} 9. a3 {[%emt 0:00:30]} c4 {[%emt 0:00:30]} 10. b3 {[%emt 0:00:30]} Ne4 {[%emt 0:00:30]} 11. Bb2 {[%emt 0:00:30]} Nxc3 {[%emt 0:00:30]} 12. Bxc3 {[%emt 0:00:30]} b5 {[%emt 0:00:30]} 13. bxc4 {[%emt 0:00:30]} bxc4 {[%emt 0:00:30]} 14. Rb1 {[%emt 0:00:30]} Bf5 {[%emt 0:00:30]} 15. Ra1 {[%emt 0:00:30]} Be4 {[%emt 0:00:30]} 16. Qa4 {[%emt 0:00:30]} Qd7 {[%emt 0:00:30]} 17. Bb4 {[%emt 0:00:30]} Bxb4 {[%emt 0:00:30]} 18. axb4 {[%emt 0:00:30]} Qd6 {[%emt 0:00:30]} 19. b5 {[%emt 0:00:30]} Bxf3 {[%emt 0:00:30]} 20. bxc6 {[%emt 0:00:00]} Bxg2 21. Kxg2 {[%emt 0:01:00]} Rfc8 {[%emt 0:01:00]} 22. Rfb1 {[%emt 0:00:30]} h5 {[%emt 0:00:30]} 23. Rb5 {[%emt 0:00:30]} Qxc6 {[%emt 0:00:30]} 24. Qa5 {[%emt 0:00:30]} Rd8 {[%emt 0:00:30]} 25. Rc5 {[%emt 0:00:30]} Qe6 {[%emt 0:00:30]} 26. Qd2 {[%emt 0:00:30]} h4 {[%emt 0:00:30]} 27. Ra3 {[%emt 0:00:30]} h3+ {[%emt 0:00:30]} 28. Kf1 {[%emt 0:00:30]} Rab8 {[%emt 0:00:30]} 29. Qc2 {[%emt 0:00:30]} Rd7 {[%emt 0:00:30]} 30. f3 {[%emt 0:00:30]} Rdb7 {[%emt 0:00:30]} 31. Qc3 {[%emt 0:00:00]} Rb1+ 32. Kf2 {[%emt 0:00:00]} Rh1 33. e4 {[%emt 0:01:30]} Rxh2+ {[%emt 0:01:30]} 34. Ke3 {[%emt 0:00:30]} Qh6+ {[%emt 0:00:30]} 35. f4 {[%emt 0:00:30]} Qh5 {[%emt 0:00:00]} 0-1

[Event "2nd Serbian League-Vojvodina 2023"]
[Site "Novi Sad"]
[Date "2023.11.07"]
[Round "8.17"]
[White "Pavkov, Nebojsa"]
[Black "Zolotic, Zoran"]
[Result "1-0"]
[ECO "B08"]
[WhiteElo "2199"]
[BlackElo "2193"]
[Annotator "RC"]
[PlyCount "37"]
[EventDate "2023.10.22"]
[EventType "team-tourn"]
[EventCountry "SRB"]
[SourceTitle "playchess.com"]
[Source "ChessBase"]
[SourceQuality "1"]
[TimeControl "40/5400+30:1800+30"]

1. Nf3 {[%emt 1:31:00]} g6 {[%emt 1:31:00]} 2. e4 {[%emt 0:00:30]} Bg7 {[%emt 0:00:30]} 3. d4 {[%emt 0:00:30]} d6 {[%emt 0:00:30]} 4. Nc3 {[%emt 0:00:30]} Nf6 {[%emt 0:00:30]} 5. h3 {[%emt 0:00:30]} O-O {[%emt 0:00:30]} 6. Bg5 {[%emt 0:00:30]} c6 {[%emt 0:00:30]} 7. Qd2 {[%emt 0:00:30]} b5 {[%emt 0:00:30]} 8. Bd3 {[%emt 0:00:30]} a6 {[%emt 0:00:30]} 9. e5 {[%emt 0:00:30]} Ne8 {[%emt 0:00:30]} 10. Bh6 {[%emt 0:00:30]} Bb7 {[%emt 0:00:30]} 11. h4 {[%emt 0:00:30]} f6 {[%emt 0:00:30]} 12. Bxg7 {[%emt 0:00:30]} Kxg7 {[%emt 0:00:30]} 13. h5 {[%emt 0:00:30]} g5 {[%emt 0:00:30]} 14. Nxg5 fxg5 {[%emt 0:00:30]} 15. Qxg5+ {[%emt 0:01:00]} Kh8 {[%emt 0:00:30]} 16. Qh6 {[%emt 0:00:30]} Rf7 {[%emt 0:00:30]} 17. Bxh7 {[%emt 0:00:30]} Ng7 {[%emt 0:00:30]} 18. Bg6+ {[%emt 0:00:30]} Kg8 {[%emt 0:00:30]} 19. Nb1 {[%emt 0:00:30]} 1-0

[Event "2nd Serbian League-Vojvodina 2023"]
[Site "Novi Sad"]
[Date "2023.11.07"]
[Round "8.18"]
[White "Krejic, Igor"]
[Black "Cica, Dragan"]
[Result "1/2-1/2"]
[ECO "B51"]
[WhiteElo "2128"]
[BlackElo "2125"]
[Annotator "RC"]
[PlyCount "101"]
[EventDate "2023.10.22"]
[EventType "team-tourn"]
[EventCountry "SRB"]
[SourceTitle "playchess.com"]
[Source "ChessBase"]
[SourceQuality "1"]
[TimeControl "40/5400+30:1800+30"]

1. e4 {[%emt 1:31:00]} c5 {[%emt 1:31:00]} 2. Nf3 {[%emt 0:00:30]} d6 {[%emt 0:00:30]} 3. Bb5+ {[%emt 0:00:30]} Nd7 {[%emt 0:00:30]} 4. c3 {[%emt 0:00:30]} a6 {[%emt 0:00:30]} 5. Bd3 {[%emt 0:00:30]} g6 {[%emt 0:00:30]} 6. O-O {[%emt 0:00:30]} Bg7 {[%emt 0:00:30]} 7. Bc2 {[%emt 0:00:30]} e5 {[%emt 0:00:30]} 8. d4 {[%emt 0:00:30]} Qc7 {[%emt 0:00:30]} 9. a4 {[%emt 0:00:30]} Rb8 {[%emt 0:00:30]} 10. dxc5 {[%emt 0:00:30]} dxc5 {[%emt 0:00:30]} 11. c4 Ne7 {[%emt 0:00:30]} 12. Nc3 O-O {[%emt 0:00:30]} 13. Bg5 f6 14. Be3 Rd8 {[%emt 0:01:00]} 15. Qe2 Nf8 {[%emt 0:00:30]} 16. Nd5 Qd6 {[%emt 0:00:30]} 17. Rfd1 Nc6 {[%emt 0:00:30]} 18. b4 b6 {[%emt 0:00:30]} 19. Nxb6 Nd4 {[%emt 0:00:30]} 20. Nxd4 exd4 {[%emt 0:00:30]} 21. bxc5 Qxc5 {[%emt 0:00:30]} 22. a5 Bg4 {[%emt 0:00:30]} 23. Bxd4 Bxe2 {[%emt 0:00:30]} 24. Bxc5 Bxd1 {[%emt 0:00:30]} 25. Rxd1 Rxd1+ {[%emt 0:00:30]} 26. Bxd1 Ne6 {[%emt 0:00:30]} 27. Be3 f5 {[%emt 0:00:30]} 28. exf5 {[%emt 0:09:00]} gxf5 {[%emt 0:00:30]} 29. c5 {[%emt 0:00:30]} Nd4 {[%emt 0:00:30]} 30. Ba4 {[%emt 0:00:30]} f4 {[%emt 0:00:30]} 31. Bd2 {[%emt 0:00:30]} Rd8 {[%emt 0:00:30]} 32. Nd7 {[%emt 0:00:30]} Rc8 {[%emt 0:00:30]} 33. Kf1 {[%emt 0:00:30]} f3 {[%emt 0:00:30]} 34. gxf3 {[%emt 0:00:30]} Nb5 {[%emt 0:00:30]} 35. Bb3+ {[%emt 0:00:30]} Kh8 {[%emt 0:00:30]} 36. Bd5 {[%emt 0:00:30]} Rc7 {[%emt 0:00:30]} 37. c6 {[%emt 0:00:30]} Nc3 {[%emt 0:00:30]} 38. Bxc3 {[%emt 0:00:30]} Bxc3 {[%emt 0:00:30]} 39. Nc5 {[%emt 0:00:30]} Bxa5 {[%emt 0:00:30]} 40. Nxa6 {[%emt 0:00:30]} Re7 {[%emt 0:00:30]} 41. Be4 {[%emt 0:30:30]} Kg7 {[%emt 0:30:30]} 42. Ke2 {[%emt 0:00:30]} Ra7 {[%emt 0:00:30]} 43. Bd3 {[%emt 0:00:30]} Kf7 {[%emt 0:00:30]} 44. f4 {[%emt 0:00:30]} Ke6 {[%emt 0:00:30]} 45. Nb8 {[%emt 0:00:30]} Kd6 {[%emt 0:00:30]} 46. Be4 {[%emt 0:00:30]} h6 {[%emt 0:00:30]} 47. Nd7 {[%emt 0:00:30]} Rxd7 {[%emt 0:00:30]} 48. cxd7 {[%emt 0:00:30]} Kxd7 {[%emt 0:00:30]} 49. Kf3 {[%emt 0:00:30]} Ke7 {[%emt 0:00:30]} 50. Kg4 {[%emt 0:00:30]} Kf6 {[%emt 0:00:30]} 51. Kh5 {[%emt 0:00:30]} 1/2-1/2

[Event "2nd Serbian League-Vojvodina 2023"]
[Site "Novi Sad"]
[Date "2023.11.07"]
[Round "8.19"]
[White "Benkovic, Petar"]
[Black "Georgiev, Krum"]
[Result "1/2-1/2"]
[ECO "A49"]
[WhiteElo "2361"]
[BlackElo "2294"]
[Annotator "RC"]
[PlyCount "22"]
[EventDate "2023.10.22"]
[EventType "team-tourn"]
[EventCountry "SRB"]
[SourceTitle "playchess.com"]
[Source "ChessBase"]
[SourceQuality "1"]
[TimeControl "40/5400+30:1800+30"]

1. Nf3 {[%emt 0:00:15]} Nf6 {[%emt 1:31:00]} 2. g3 {[%emt 1:31:15]} g6 {[%emt 0:00:00]} 3. b3 {[%emt 0:00:00]} Bg7 {[%emt 0:00:00]} 4. Bb2 {[%emt 0:00:00]} d6 {[%emt 0:00:00]} 5. d4 {[%emt 0:00:00]} a5 {[%emt 0:00:00]} 6. Bg2 {[%emt 0:00:00]} O-O {[%emt 0:00:00]} 7. O-O {[%emt 0:00:00]} c6 {[%emt 0:00:00]} 8. a4 {[%emt 0:00:00]} d5 {[%emt 0:00:00]} 9. Nbd2 {[%emt 0:00:00]} Bf5 {[%emt 0:00:00]} 10. Nh4 {[%emt 0:00:00]} Be6 {[%emt 0:00:00]} 11. Nhf3 {[%emt 0:00:00]} Bf5 {[%emt 0:00:00]} 1/2-1/2

[Event "2nd Serbian League-Vojvodina 2023"]
[Site "Novi Sad"]
[Date "2023.11.07"]
[Round "8.20"]
[White "Indjic, Dusan"]
[Black "Jocev, Milan"]
[Result "0-1"]
[ECO "D13"]
[WhiteElo "2304"]
[BlackElo "2338"]
[Annotator "RC"]
[PlyCount "86"]
[EventDate "2023.10.22"]
[EventType "team-tourn"]
[EventCountry "SRB"]
[SourceTitle "playchess.com"]
[Source "ChessBase"]
[SourceQuality "1"]
[TimeControl "40/5400+30:1800+30"]

1. d4 {[%emt 1:31:00]} d5 {[%emt 1:31:00]} 2. Nf3 {[%emt 0:00:30]} Nf6 {[%emt 0:00:30]} 3. Bg5 {[%emt 0:00:30]} Ne4 {[%emt 0:00:30]} 4. Bf4 {[%emt 0:00:30]} c5 {[%emt 0:00:30]} 5. c3 {[%emt 0:00:30]} cxd4 {[%emt 0:00:30]} 6. cxd4 {[%emt 0:00:30]} Nc6 {[%emt 0:00:30]} 7. Nc3 {[%emt 0:00:30]} e6 {[%emt 0:00:30]} 8. e3 {[%emt 0:00:30]} g5 {[%emt 0:00:30]} 9. Be5 {[%emt 0:00:30]} f6 {[%emt 0:00:30]} 10. Bg3 {[%emt 0:00:30]} h5 {[%emt 0:00:30]} 11. h4 {[%emt 0:00:30]} Nxg3 {[%emt 0:00:30]} 12. fxg3 {[%emt 0:00:30]} Bd6 {[%emt 0:00:30]} 13. Kf2 {[%emt 0:00:30]} Qe7 {[%emt 0:00:30]} 14. Bb5 {[%emt 0:00:30]} Qg7 {[%emt 0:00:30]} 15. hxg5 {[%emt 0:00:30]} fxg5 {[%emt 0:00:30]} 16. e4 {[%emt 0:00:30]} g4 {[%emt 0:00:30]} 17. e5 {[%emt 0:00:30]} Be7 {[%emt 0:00:30]} 18. Nh4 {[%emt 0:00:30]} Bd7 {[%emt 0:00:30]} 19. Qd3 {[%emt 0:00:30]} O-O-O {[%emt 0:00:30]} 20. Bxc6 {[%emt 0:00:30]} Bxc6 {[%emt 0:00:30]} 21. Ng6 {[%emt 0:00:30]} Rh6 {[%emt 0:00:30]} 22. Nxe7+ {[%emt 0:00:30]} Qxe7 {[%emt 0:00:30]} 23. Rh4 {[%emt 0:00:30]} Rf8+ {[%emt 0:00:30]} 24. Kg1 {[%emt 0:00:30]} Qb4 {[%emt 0:00:30]} 25. b3 {[%emt 0:00:30]} Kb8 {[%emt 0:00:30]} 26. Rf1 {[%emt 0:00:30]} Rxf1+ {[%emt 0:00:30]} 27. Kxf1 {[%emt 0:00:30]} Rh8 {[%emt 0:00:30]} 28. Kg1 {[%emt 0:00:30]} a6 {[%emt 0:00:30]} 29. Qe3 {[%emt 0:00:30]} Be8 {[%emt 0:00:30]} 30. Kh2 {[%emt 0:00:30]} Ka7 {[%emt 0:00:30]} 31. Nd1 {[%emt 0:00:30]} Bg6 {[%emt 0:00:30]} 32. Nf2 {[%emt 0:00:30]} Bf5 {[%emt 0:00:30]} 33. Nd1 {[%emt 0:00:30]} Rc8 {[%emt 0:00:30]} 34. Rxh5 {[%emt 0:00:30]} Rc2 {[%emt 0:00:30]} 35. Rxf5 {[%emt 0:00:30]} exf5 {[%emt 0:00:30]} 36. e6 {[%emt 0:00:30]} Qe7 {[%emt 0:00:30]} 37. Nc3 {[%emt 0:00:30]} f4 {[%emt 0:00:30]} 38. Qd3 {[%emt 0:00:30]} fxg3+ {[%emt 0:00:30]} 39. Kxg3 {[%emt 0:00:30]} Qd6+ {[%emt 0:00:30]} 40. Kh4 {[%emt 0:00:30]} Rxg2 {[%emt 0:00:30]} 41. Qf5 {[%emt 0:30:30]} Qe7+ {[%emt 0:30:30]} 42. Kh5 {[%emt 0:00:30]} Rh2+ {[%emt 0:00:30]} 43. Kxg4 {[%emt 0:00:30]} Qh4+ {[%emt 0:00:30]} 0-1